Cogmind - Beta 15 @@@ ROGUE MODE // 2025.06.03 @ 20:22:41 Player: KN-OKO Result: Destroyed by Y-54 Guardian with Flak Gun Performance ------------- Evolutions (0) 0 Regions Visited (3) 600 Robots Destroyed (19) 95 Value Destroyed (394) 394 Prototype IDs (1) 20 Alien Tech Used (0) 0 Bonus (44) 44 TOTAL SCORE: 1153 Bonus ------- Follower Combat Kills 44 Cogmind --------- Core Integrity 0/250 Matter 284/300 Energy 82/100 System Corruption 0% Temperature Cool (0) Movement Treading (160) Location -7/Recycling Parts ------- > --- POWER (1) -------- (None) > --- PROPULSION (2) --- Light Treads Light Treads > --- UTILITY (2) ------ Large Storage Unit > --- WEAPON (2) ------- Subdweller Machine Gun Light Cannon > --- INVENTORY (15) --- Light Treads Light Treads Subdweller Monowheel Cooling System High-capacity Matter Pod (200) Subdweller Optics Seismic Detector Core Shielding V3-11A's Pendant Subdweller Laser Gatling Laser Light Cannon Mini Grenade Launcher Flamer Peak State ------------ > --- POWER ------------ Ion Engine > --- PROPULSION ------- Light Treads Light Treads > --- UTILITY ---------- Improved Heat Sink Small Storage Unit > --- WEAPON ----------- Small Laser Particle Gun > --- INVENTORY -------- Light Nuclear Core Aluminum Leg Aluminum Leg Aluminum Leg Aluminum Leg High-capacity Matter Pod Seismic Detector Small Laser [Rating: 11] Favorites ----------- Power Light Nuclear Core Engine Ion Engine Power Core Light Nuclear Core Propulsion Light Treads Treads Light Treads Utility Large Storage Unit Device Seismic Detector Storage Large Storage Unit Processor Targeting Computer Protection Core Shielding Weapon Light Cannon Energy Gun Small Laser Ballistic Gun Subdweller Machine Gun Ballistic Cannon Light Cannon Launcher Mini Grenade Launcher Special Weapon Flamer Build | -11 -10 -10 -7 ------- Run | Yrd Mat Sub Rec Slots Evolved . | . . . . Power . | . . . . Propulsion . | . . . . Utility . | . . . . Weapon . | . . . . Parts Attached 26 | 7 8 9 2 Power 2 | 1 1 . . Engine 1 | 1 . . . Core 1 | . 1 . . Reactor . | . . . . Propulsion 4 | 2 . 2 . Treads 4 | 2 . 2 . Leg . | . . . . Wheel . | . . . . Hover . | . . . . Flight . | . . . . Utility 9 | 2 4 2 1 Device 3 | 1 1 1 . Storage 4 | 1 3 . . Processor 1 | . . . 1 Hackware . | . . . . Protection 1 | . . 1 . Artifact . | . . . . Weapon 11 | 2 3 5 1 Energy Gun 3 | 1 1 1 . Energy Cannon . | . . . . Ballistic Gun 2 | 1 . 1 . Ballistic Cannon 4 | . 2 1 1 Launcher 1 | . . 1 . Special Weapon 1 | . . 1 . Impact Weapon . | . . . . Slashing Weapon . | . . . . Piercing Weapon . | . . . . Special Melee Weapon . | . . . . Unidentified Prototypes 1 | . . 1 . Parts Lost 6 | . . 4 2 Power 1 | . . 1 . Propulsion 2 | . . 2 . Utility 1 | . . . 1 Weapon 2 | . . 1 1 Highest Loss Streak 4 | . . 4 2 To Critical Strikes . | . . . . Average Backups 9 | 4 9 9 14 Power . | . . . . Propulsion 3 | 2 3 2 3 Utility 3 | . 2 4 5 Weapon 3 | . 3 3 5 Tool/Special . | . . . . Unused Backups 18 | . 11 . 7 Power 1 | . 1 . . Propulsion 10 | . 7 . 3 Utility 3 | . . . 3 Weapon 4 | . 3 . 1 Tool/Special . | . . . . Average Slot Usage (%) 92 | . 99 86 84 Engine 1 | . 2 . . Core 6 | . 11 1 . Treads 27 | . 28 27 28 Device 12 | . 13 11 2 Storage 14 | . 14 14 14 Protection 1 | . . 2 . Energy Gun 3 | . 6 . . Ballistic Gun 2 | . 1 2 14 Ballistic Cannon 21 | . 19 23 14 Peak Build Rating 11 | 7 11 10 11 Average Rating 9 | 5 9 9 9 On Entrance 6 | . 7 10 10 Naked Turns . | . . . . Heaviest Build 52 | 14 52 32 28 Greatest Support 40 | 40 40 40 40 Greatest Overweight (x) 1 | . 1 . . Average Overweight (x) . | . . . . Largest Inventory Capacity 20 | 8 20 15 15 Average Capacity 12 | 7 10 15 15 Most Carried 15 | 6 10 13 15 Average Carried 9 | 4 9 9 14 Final Capacity 15 | 8 15 15 15 Final Carried 14 | 6 10 13 14 Class Distribution -------------------- 100% | Mutant Dominant Class ---------------- Mutant | -10/Materials Mutant | -10/Subcaves Mutant | -7/Recycling Resources | -11 -10 -10 -7 ----------- Run | Yrd Mat Sub Rec Matter Collected 1063 | 208 309 417 129 Remotely . | . . . . Salvage Created 463 | 12 284 167 . Parts 34 | 4 25 5 . Haulers Intercepted 2 | . 2 . . Recyclers Shooed 1 | 1 . . . Parts Field Recycled . | . . . . Retrieved Matter . | . . . . Parts Self-Destructed 13 | . . 13 . Prevented . | . . . . Kills | -11 -10 -10 -7 ------- Run | Yrd Mat Sub Rec Combat Hostiles Destroyed 13 | . 9 4 . Guns 6 | . 6 . . Cannons 5 | . 3 2 . AOE 2 | . . 2 . Classes Destroyed 7 | 1 5 1 . Tunneler 1 | 1 . . . Hauler 2 | . 2 . . Operator 1 | . 1 . . Watcher 2 | . 2 . . Swarmer 6 | . 6 . . Grunt 3 | . 3 . . Subdweller 4 | . . 4 . Best Kill Streak 3 | 1 3 2 . Combat Bots Only 3 | . 3 2 . Max Kills in Single Turn 2 | 1 2 1 . Gunslinging 1 | . 1 . . Exploded 1 | . . 1 . Melee . | . . . . Uniques/NPCs Destroyed . | . . . . Combat | -11 -10 -10 -7 -------- Run | Yrd Mat Sub Rec Hostile Shots Fired 117 | . 50 49 18 Missed 31 | . 9 17 5 Hits 86 | . 41 32 13 Projectile 86 | . 41 32 13 Critical Strikes 3 | . 1 2 . Damage Taken 1075 | . 373 638 64 Core 250 | . 98 146 6 Absorbed by Shields . | . . . . Redirected to Shielding 19 | . . 19 . Regen/Repaired (Parts) 19 | . 19 . . Core Remaining (%) 100 | 100 . . . Volleys Fired 81 | 2 40 37 2 Largest 2 | 2 2 2 2 Hottest 105 | 60 105 100 60 Shots Fired 142 | 4 79 55 4 Gun 49 | 4 37 6 2 Cannon 82 | . 42 38 2 Launcher 4 | . . 4 . Special 7 | . . 7 . Kinetic 92 | 2 48 38 4 Thermal 46 | 2 31 13 . Explosive 4 | . . 4 . Electromagnetic . | . . . . Robot Hit Streak 21 | 3 10 21 20 Robot Miss Streak 6 | 1 6 2 . Penetration Max . | . . . . Secondary Targets 2 | . 2 . . Max Gunslinging Chain 1 | . 1 . . Shots Hit Robots 100 | 3 49 44 4 Core Hits 35 | 2 17 15 1 Critical Kills . | . . . . Critical Parts Destroyed 1 | . . 1 . Critical Strikes 3 | . . 3 . Destroy 2 | . . 2 . Blast 1 | . . 1 . Melee Attacks . | . . . . Impact . | . . . . Slashing . | . . . . Piercing . | . . . . Sneak Attacks . | . . . . Combat Hostiles . | . . . . Follow-up Attacks . | . . . . Damage Inflicted 1829 | 36 752 963 78 Guns 572 | 36 374 121 41 Cannons 850 | . 357 456 37 Explosions 310 | . . 310 . Melee . | . . . . Ramming 21 | . 21 . . Kinetic 978 | 25 419 456 78 Thermal 520 | 11 312 197 . Explosive 310 | . . 310 . Electromagnetic . | . . . . Impact . | . . . . Slashing . | . . . . Piercing . | . . . . Highest Corruption . | . . . . Average Corruption . | . . . . Corruption Purged . | . . . . Corruption Blocked . | . . . . Overload Shots . | . . . . Overflow Damage 15 | . 15 . . Projectiles 15 | . 15 . . Explosions . | . . . . Melee . | . . . . Knockbacks 14 | . 5 9 . Impact . | . . . . Kinetic 13 | . 5 8 . Secondary 1 | . . 1 . Self-Inflicted Damage . | . . . . Shots . | . . . . Rammed 3 | . 3 . . Targets Rammed 3 | . 3 . . Kicked . | . . . . Crushed . | . . . . Highest Temperature 234 | . 204 234 7 Average Temperature 37 | . 31 141 4 Received Heat Transfer 420 | . 72 336 12 Siege Activations . | . . . . Martial Activations . | . . . . Shielding Activations . | . . . . Robots Disrupted . | . . . . Combat Hostiles . | . . . . Robots Corrupted . | . . . . Combat Hostiles . | . . . . Parts Fried . | . . . . Impact Corruptions . | . . . . Robots Melted 1 | . 1 . . Combat Hostiles . | . . . . Parts Melted 3 | . 3 . . Heat Transferred 1455 | 25 720 710 . Parts Sabotaged . | . . . . Parts Stolen . | . . . . Parts Stripped . | . . . . Power Chain Reactions . | . . . . Alert | -11 -10 -10 -7 ------- Run | Yrd Mat Sub Rec Maximum Alert Level . | . . . . Low Security (%) 100 | 100 100 . 100 Level 1 . | . . . . Level 2 . | . . . . Level 3 . | . . . . Level 4 . | . . . . Level 5 . | . . . . High Security . | . . . . Max Security . | . . . . Peak Influence 106 | 5 70 . 106 Initial 66 | . . . 66 Average 17 | . 14 . 55 Influence Increases 538 | 5 303 170 60 Destroy 0b10 Robot/C 260 | . 180 80 . Destroy 0b10 Robot/NC 30 | 5 25 . . Destroy Leader 38 | . 38 . . Allied During Kill 15 | . . 15 . Successful Hack 14 | . 14 . . Select Force Hacks 60 | . . . 60 Destroy Structure 1 | . 1 . . Lose Combat Pursuer 120 | . 45 75 . Influence Decreases 538 | 5 303 32 198 Entered New Map 72 | . . . 72 Time Decay 380 | 5 303 12 60 Lost Part 6 | . . . 6 Lost Ally 80 | . . 20 60 Squads Dispatched . | . . . . Investigation . | . . . . Extermination . | . . . . Reinforcement . | . . . . Assault . | . . . . Garrison . | . . . . Intercept . | . . . . Searches Triggered . | . . . . Construction Impeded . | . . . . Haulers Reinforced . | . . . . Active Scanning Responses . | . . . . Cargo Convoy Interrupts . | . . . . Stealth | -11 -10 -10 -7 --------- Run | Yrd Mat Sub Rec Distress Signals 1 | . 1 . . Communications Jammed . | . . . . Distress Signals . | . . . . Times Spotted 37 | . 24 12 1 Peak Tracking Total 6 | . 4 6 1 Tactical Retreats 4 | . 2 2 . Traps | -11 -10 -10 -7 ------- Run | Yrd Mat Sub Rec Traps Triggered 2 | . 2 . . Indirectly . | . . . . Trap Hack Attempts . | . . . . Triggered . | . . . . Disarmed . | . . . . Reprogrammed . | . . . . Reused . | . . . . Traps Extracted . | . . . . Installed . | . . . . Triggered . | . . . . Machines | -11 -10 -10 -7 ---------- Run | Yrd Mat Sub Rec Machines Disabled 2 | . . 2 . Max in Single Turn . | . . . . Machines Repaired . | . . . . Machines Dismantled . | . . . . Machines Sabotaged . | . . . . Overloaded Fab Kills . | . . . . Hacking | -11 -10 -10 -7 --------- Run | Yrd Mat Sub Rec Machines Accessed 10 | . 7 1 2 Terminals 6 | . 6 . . Fabricators . | . . . . Repair Stations 1 | . 1 . . Recycling Units 2 | . . . 2 Scanalyzers . | . . . . Garrison Access . | . . . . Total Hacks 13 | . 10 1 2 Successful 10 | . 7 1 2 Failed 3 | . 3 . . Catastrophic 1 | . 1 . . Database Lockouts . | . . . . Manual 9 | . 7 . 2 Terminals 7 | . 7 . . Fabricators . | . . . . Repair Stations 3 | . 3 . . Recycling Units 2 | . . . 2 Scanalyzers . | . . . . Garrison Access . | . . . . Terminal Hacks 1 | . . 1 . Record 1 | . . 1 . Fabricator Hacks . | . . . . Repair Station Hacks 2 | . 2 . . Scan Component 1 | . 1 . . Repair 1 | . 1 . . Recycling Unit Hacks . | . . . . Scanalyzer . | . . . . Garrison Access Hacks . | . . . . Unauthorized Hacks 7 | . 5 . 2 Terminals 5 | . 5 . . Skim 5 | . 5 . . Fabricators . | . . . . Repair Stations . | . . . . Recycling Units 2 | . . . 2 Tunnel 2 | . . . 2 Scanalyzers . | . . . . Garrison Access . | . . . . Data Cores Recovered 1 | . 1 . . Used . | . . . . Hacking Detections 4 | . 4 . . Full Trace Events 1 | . 1 . . Feedback Events . | . . . . Feedback Blocked . | . . . . Robot Schematics Acquired . | . . . . Robots Built . | . . . . Authchips . | . . . . Time . | . . . . Total Robot Build Rating . | . . . . Part Schematics Acquired . | . . . . Parts Built . | . . . . Authchips . | . . . . Time . | . . . . Total Part Build Rating . | . . . . Parts Repaired 1 | . 1 . . Time 26 | . 26 . . Parts Recycled . | . . . . Recycled Matter . | . . . . Retrieved Matter . | . . . . Retrieved Components . | . . . . Parts Scanalyzed . | . . . . Part Schematics Acquired . | . . . . Parts Damaged . | . . . . Bothacking | -11 -10 -10 -7 ------------ Run | Yrd Mat Sub Rec Used RIF Installer . | . . . . Robots Hacked . | . . . . Non-combat . | . . . . Combat . | . . . . Robot Hacks Applied . | . . . . Relay Couplers Released . | . . . . Fabnet Peak Effective % . | . . . . Robots Rewired . | . . . . Allies Hacked . | . . . . Hacks Repelled . | . . . . Allies | -11 -10 -10 -7 -------- Run | Yrd Mat Sub Rec Total Allies 4 | . . 4 . Largest Group 4 | . . 4 3 Highest-Rated Group 76 | . . 76 57 Highest-Rated Ally 19 | . . 19 19 Total Orders . | . . . . Ally Attacks 32 | . . 29 3 Total Damage 535 | . . 491 44 Kills 5 | . . 5 . Allies Corrupted . | . . . . Allies Melted . | . . . . Intel | -11 -10 -10 -7 ------- Run | Yrd Mat Sub Rec Active Infowar (turns) 1307 | 44 1184 79 . Seismic 1307 | 44 1184 79 . Robot Analysis Total . | . . . . Derelict Logs Recovered . | . . . . Drone Launches . | . . . . Drone Recoveries . | . . . . Exploration | -11 -10 -10 -7 ------------- Run | Yrd Mat Sub Rec Turns Passed 2939 | 116 1276 1411 136 Spaces Moved 1555 | 58 655 781 61 Core 5 | 5 . . . Treads 1550 | 53 655 781 61 Legs . | . . . . Wheels . | . . . . Hover . | . . . . Flight . | . . . . Fastest Speed 50 | 50 160 160 160 Average Speed 159 | 150 160 160 160 Slowest Speed 240 | 160 240 160 160 Overloaded Moves . | . . . . Propulsion Burnouts . | . . . . Robots Hopped . | . . . . Potential Cave-ins . | . . . . Cave-ins Triggered . | . . . . Exploration Rate (%) 38 | 4 86 50 12 Regions Visited 3 Branch Regions 2 Pre-discovered Areas 3 | . 1 . 2 Known Exits Taken . | . . . . Unknown Exits Taken 3 | 1 1 1 . Scrap Searched . | . . . . Spaces Dug . | . . . . Terrain Destroyed 11 | . . 11 . Melee . | . . . . Projectile . | . . . . AOE 11 | . . 11 . Terrain Rammed . | . . . . Walls Destroyed . | . . . . Machines Disabled . | . . . . Actions | -11 -10 -10 -7 --------- Run | Yrd Mat Sub Rec Total 1862 | 79 808 878 97 Wait 140 | 7 59 44 30 Move 1552 | 57 654 780 61 Hop . | . . . . Pick Up 32 | 6 20 4 2 Fast Attach 12 | 7 3 2 . Attach 7 | . 2 4 1 Detach 3 | . . 3 . Swap 13 | . 8 4 1 Drop 19 | . 19 . . Fire 81 | 2 40 37 2 Melee . | . . . . Ram . | . . . . Kick . | . . . . Crush 3 | . 3 . . Escape Stasis . | . . . . Rewire . | . . . . Trap . | . . . . Miscellaneous . | . . . . Route ------- -11/Scrapyard -10/Materials (discovered 5 exits: [*Mat x3] / [*Min] / *Sub) -10/Subcaves (discovered 3 exits: *Mat x2 / *Rec) -7/Recycling History --------- Turn | Location | Event 6 | -11/Scrapyard | Discovered new exit (range 16) 117 | -11/Scrapyard | Entered Materials 301 | -10/Materials | Build established: Mutant 596 | -10/Materials | Discovered new exit (range 5) 678 | -10/Materials | Discovered new exit (range 7) 841 | -10/Materials | Discovered new exit (range 16) 1078 | -10/Materials | Discovered new exit (range 13) 1147 | -10/Materials | Repaired Seismic Detector 1329 | -10/Materials | Learned location of Recycling (-7) 1382 | -10/Materials | Discovered new exit (range 8) 1393 | -10/Materials | Entered Subcaves 1394 | -10/Subcaves | Approached by a straggling Scientist 1394 | -10/Subcaves | Identified exit to Materials 1495 | -10/Subcaves | Core integrity fell below 50% 1609 | -10/Subcaves | Lost 4 parts (1p2n1w) 1678 | -10/Subcaves | Visited triangular shrine 1688 | -10/Subcaves | Found Prototype Device 1688 | -10/Subcaves | Identified V3-11A's Pendant 1693 | -10/Subcaves | Befriended Subdweller 1852 | -10/Subcaves | Visited Clippyterm 1952 | -10/Subcaves | A swath of the cavern ceiling suddenly collapsed 2154 | -10/Subcaves | Shifting Twisted Machinery released Flamer 2500 | -10/Subcaves | Core integrity fell below 20% 2503 | -10/Subcaves | Befriended Subdweller 2503 | -10/Subcaves | Befriended Subdweller 2548 | -10/Subcaves | Befriended Subdweller 2769 | -10/Subcaves | Discovered new exit (range 13) 2804 | -10/Subcaves | Entered Recycling 2804 | -7/Recycling | Accompanied by 3 allies 2940 | -7/Recycling | Destroyed by Y-54 Guardian with Flak Gun Last Messages --------------- 02856_ Connecting with Recycling Unit... 02856_ Current location identified: Recycling >>Force(Tunnel) DISCOVERED[-6/Extension] 02861_ Connecting with Recycling Unit... >>Force(Tunnel) DISCOVERED[-6/Factory] 02891_ V3-11A: "I hear you, but what does it all mean?!" 02891_ V3-11A destroyed. 02891_ K3-WAM(R) destroyed. 02912_ R-06 Scavenger collects Disposable Heat Sink. 02917_ R-06 Scavenger collects Sub. Optics. 02919_ R-06 Scavenger collects Sub. Monowheel. 02923_ R-06 Scavenger collects Sub. Power Source. 02924_ ID-5Q3(R) destroyed. 02924_ R-06 Scavenger collects Sub. Machine Gun. 02926_ R-06 Scavenger collects Sub. Optics. 02927_ R-06 Scavenger collects Sub. Monowheel. 02937_ Targeting Computer destroyed. 02937_ Lgt. Cannon destroyed. Map ----- +----------------------------------------------------+ | ?????????????????????????????????????????????????? | | ?????????????????????????????????????????????????? | | ?????????????????????????????????????????????????? | | ????????????????????????????????#####????????????? | | ????????????????????????????????# #????????????? | | ????????????????????????????????# ##########???? | | ????????????????????????????????# # #???? | | ????????????????????????????????# # #???? | | ????????????????????????????????# # #???? | | ????????????????????????????????# + % #???? | | ????????????????????????????????# # ! #???? | | ????????????????????????????????# # ! ! #???? | | ????????????????????????????????# # #???? | | ??????????????????????????????### # #???? | | ??????????????????????????????#"" # [ ! #???? | | ??????????????????????????????#"Y ##########???? | | ???????????????????????????####"" ###??????????? | | ??????????????????????######r#### ""#??????????? | | ??????????????????????# # Y"#??????????? | | ??????????????????????# + ""#??????????? | | ?????????????????????## # ###??????????? | | ?????????????????????#r r # #????????????? | | ?????????????????????## # #????????????? | | ??????????????????????# r # #????????????? | | ??????????????????????# # #????????????? | | ??????????????????????# @ # #????????????? | | ??????????????????????####Y###### #????????????? | | ?????????????????????????#r#????# #????????????? | | ?????????????????????????#&#????# #????????????? | | ?????????????????????????#%#????# #????????????? | | ???????????????????????? %%& ???# #????????????? | | ?????????????????????? & #??# #????????????? | | ???????????????????? #??? ????????????? | | ?????????????????? #??? ?????????????? | | ?????????????????#### ## #???????????????????? | | ????????????????????##?#######???????????????????? | | ?????????????????????????????????????????????????? | | ?????????????????????????????????????????????????? | | ?????????????????????????????????????????????????? | | ?????????????????????????????????????????????????? | | ?????????????????????????????????????????????????? | | ?????????????????????????????????????????????????? | | ?????????????????????????????????????????????????? | | ?????????????????????????????????????????????????? | | ?????????????????????????????????????????????????? | | ?????????????????????????????????????????????????? | | ?????????????????????????????????????????????????? | | ?????????????????????????????????????????????????? | | ?????????????????????????????????????????????????? | | ?????????????????????????????????????????????????? | +----------------------------------------------------+ Best States ------------- Heat Dissipation 39 Energy Generation 14 Energy Capacity 250 Matter Stores 300 Matter Capacity 300 Sight Range 16 Terrain Scan Density 10 Core Shielding 20 Evasion (%) 40 Targeting Accuracy 5 Recoil Reduction 2 Item Schematics ----------------- None Robot Schematics ------------------ None Fabricated ------------ Nothing Repaired ---------- Seismic Detector | 5% | -10/Materials Alien Tech Used ----------------- None Achievements -------------- None Challenges ------------ None Game ------ Seed PlasmaCombatSheargun Manual? 0 Play Time 00:15:42 Cumulative 490.0 hours Start 2025.06.03 @ 20:07:55 End 2025.06.03 @ 20:22:41 Sessions 1 Manual Loads 0 Difficulty Rogue Special Mode None Game No. 338 Rogue 338 Adventurer 0 Explorer 0 Win Type - Total 45 Types 39/0/4/2/0/0/0/0/0/0 Lore% 82 Gallery% 79 Achievement% 72 Wizard Run 0 Options --------- Layout 0 ASCII 0 Keyboard 1 Movement Numpad Keybinds 0 Fullscreen 2 Font 24/Tamsyn Map View 76x50 Zoom Use 0% Tactical HUD 1 Map Filters NONE Filters NONE Steam 1 RUN: f5347506-401b-437c-9236-dbe18b183a8a